[Event "CCT Airthings Masters Play-In 2023"]
[Site "Online"]
[Date "2023.02.03"]
[Round "3"]
[White "SergeiAza"]
[Black "CheckBits"]
[Result "1-0"]
[ECO "C67"]
[WhiteElo "2507"]
[BlackElo "2224"]
[Annotator "TA"]
[PlyCount "83"]
[EventDate "2023.02.03"]
[EventType "swiss"]
[EventCountry "NET"]
[SourceTitle "playchess.com"]
[Source "ChessBase"]
[SourceQuality "1"]
[TimeControl "600+2"]

{[%evp 12,83,0,0,0,0,9,0,0,-5,5,0,2,4,41,33,42,28,30,48,29,36,72,7,51,55,116,102,137,136,210,121,147,110,108,108,110,111,154,148,355,372,450,444,456,243,243,106,243,231,226,231,231,218,451,451,442,442,405,412,483,470,567,556,734,691,6299,6091,6299,6299,6299,6287,6225,6225]} 1. e4 {[%emt 0:00:03]} e5 {[%emt 0:01:24]} 2. Nf3 {[%emt 0:00:03]} Nc6 {[%emt 0:00:03]} 3. Bb5 {[%emt 0:00:01]} Nf6 {[%emt 0:00:01]} 4. O-O {[%emt 0:00:02]} Nxe4 {[%emt 0:00:02]} 5. d4 {[%emt 0:00:01]} Nd6 {[%emt 0:00:01]} 6. dxe5 {[%emt 0:00:01]} Nxb5 {[%emt 0:00:02]} 7. a4 {[%emt 0:00:01]} Nbd4 {[%emt 0:00:05] C67: Ruy Lopez: Berlin Defence: 4 0-0 Nxe4.} 8. Nxd4 {[%emt 0:00:01]} d5 {[%emt 0:00:16] now supersedes 8...Nxd4.} 9. Nxc6 {[%emt 0:00:02]} bxc6 {[%emt 0:00:01] The position is equal.} 10. Qd3 {[%emt 0:00:01]} Be7 {[%emt 0:00:13] [#]} 11. Be3 $146 {[%emt 0:00:02]} ({Predecessor:} 11. Qg3 g6 12. Bh6 Bf5 13. Nd2 Bf8 14. Bxf8 Kxf8 15. Qc3 d4 16. Qc5+ Kg7 17. Nf3 {0-1 Hakobyan,A (2612)-Kozak,A (2522) Titled Tuesday intern op 19th Jul Early blitz 2022 (5)}) 11... O-O {[%emt 0:00:09]} 12. Qc3 {[%emt 0:00:02]} Bf5 {[%emt 0:00:09]} 13. Nd2 {[%emt 0:00:17]} f6 {[%emt 0:00:55]} 14. Nf3 {[%emt 0:00:50]} Qd7 {[%emt 0:00:48] Black is weak on the dark squares} 15. Bc5 {[%emt 0:00:21]} Bxc5 {[%emt 0:00:30]} 16. Qxc5 {[%emt 0:00:03]} Bg4 {[%emt 0:00:19] [#]} 17. e6 {[%emt 0:00:16]} Qxe6 {[%emt 0:00:22]} 18. Nd4 $36 {[%emt 0:00:04][%csl LRc6,LRe6][%mdl 2048] White is more active.} Qd7 {[%emt 0:00:32]} (18... Qd6 $1 $14 19. Qxd6 (19. Qxc6 Qxc6 20. Nxc6 Rf7 $14) 19... cxd6) 19. f3 {[%emt 0:00:11]} Bf5 {[%emt 0:00:22]} 20. Rfe1 {[%emt 0:00:05]} Rfe8 {[%emt 0:00:07] Prevents Re7} (20... Bg6 $16) 21. Nxc6 {[%emt 0:00:09]} ({White should play} 21. Rxe8+ $1 $18 Rxe8 22. Qxa7) 21... Kf7 {[%emt 0:00:26]} 22. Nd4 {[%emt 0:00:09] White has more active pieces.} ({But not} 22. Nxa7 Rxe1+ 23. Rxe1 Qd6 24. Qxd6 cxd6 $16) 22... Bg6 {[%emt 0:00:11]} 23. a5 {[%emt 0:00:09]} a6 {[%emt 0:00:03]} 24. b4 {[%emt 0:00:08]} Re5 {[%emt 0:00:32]} 25. Nc6 {[%emt 0:00:08] Wards off Qe7} Rxe1+ {[%emt 0:00:21]} (25... Re6 $16 {was worth a try.} 26. Rxe6 Qxe6) 26. Rxe1 $18 {[%emt 0:00:02]} Re8 {[%emt 0:00:00] Prevents Re7+} 27. Rxe8 {[%emt 0:00:06]} Kxe8 {[%emt 0:00:02][%mdl 4096] Endgame KQB-KQN} 28. Nd4 {[%emt 0:00:19] Against Qe6} (28. b5 $142 Qe6 29. Kf2 (29. bxa6 $2 Qe1#)) 28... Qe7 {[%emt 0:00:04] [#]} 29. Qxe7+ {[%emt 0:00:44]} (29. Qxd5 $2 Qe1#) ({And not} 29. Qc6+ Kf8 30. Qc3 (30. Qxd5 $2 Qe1#) 30... Be8 $14) 29... Kxe7 {[%emt 0:00:01] [#] KB-KN} 30. b5 $1 {[%emt 0:00:01]} Kd7 {[%emt 0:00:14]} (30... axb5 $2 31. a6 $18) 31. bxa6 {[%emt 0:00:07]} Kc8 {[%emt 0:00:01]} 32. c3 {[%emt 0:00:13]} Bd3 $2 {[%emt 0:00:12]} (32... Kb8 33. Nc6+ Ka8) 33. a7 {[%emt 0:00:12]} Kb7 {[%emt 0:00:01]} 34. Ne6 {[%emt 0:00:03]} Kxa7 {[%emt 0:00:08]} 35. Nxc7 {[%emt 0:00:02]} Bc4 {[%emt 0:00:06]} 36. Kf2 {[%emt 0:00:15] White is clearly winning.} g5 {[%emt 0:00:20]} 37. Ke3 {[%emt 0:00:10]} Kb7 {[%emt 0:00:10]} 38. Ne8 {[%emt 0:00:04] Nd6+ would be deadly.} f5 {[%emt 0:00:09]} 39. Nd6+ {[%emt 0:00:05]} Ka6 {[%emt 0:00:01]} 40. Nxc4 {[%emt 0:00:03]} dxc4 {[%emt 0:00:01]} 41. Kd4 {[%emt 0:00:02]} Kxa5 {[%emt 0:00:03]} 42. Kxc4 {[%emt 0:00:01] Weighted Error Value: White=0.20 (precise) /Black=0.40} 1-0

[Event "CCT Airthings Masters Play-In 2023"]
[Site "Online"]
[Date "2023.02.03"]
[Round "3"]
[White "TimofeevAr"]
[Black "VincentKeymer"]
[Result "0-1"]
[ECO "B13"]
[WhiteElo "2507"]
[BlackElo "2626"]
[Annotator "TA"]
[PlyCount "104"]
[EventDate "2023.02.03"]
[EventType "swiss"]
[EventCountry "NET"]
[SourceTitle "playchess.com"]
[Source "ChessBase"]
[SourceQuality "1"]
[TimeControl "600+2"]

{[%evp 9,104,-4,10,5,14,-6,13,-8,12,11,0,0,16,-30,4,8,8,10,6,13,13,14,9,0,-2,-40,-49,-43,-34,-58,-57,-58,-59,-59,-65,-56,-27,-29,-26,-29,-10,-5,11,14,14,17,8,6,24,0,0,0,0,0,-7,-231,-227,-232,-231,-231,-227,-217,-231,-293,-294,-294,-281,-275,-274,-262,-248,-289,-288,-281,-255,-583,-531,-667,-643,-858,-847,-4695,-5800,-5460,-5073,-2162,-2093,-983,-802,-739,-756,-5800,-4891,-2641,-298,-1595,-1514]} 1. d4 {[%emt 0:00:04]} Nf6 {[%emt 0:00:04]} 2. Nc3 {[%emt 0:00:02]} d5 {[%emt 0:00:01]} 3. Bf4 {[%emt 0:00:02]} c5 {[%emt 0:00:04]} 4. e3 {[%emt 0:00:02]} cxd4 {[%emt 0:00:01]} 5. exd4 {[%emt 0:00:01]} Bg4 {[%emt 0:00:01]} 6. f3 {[%emt 0:00:02] B13: Caro-Kann: Exchange Variation and Panov-Botvinnik Attack.} Bd7 {[%emt 0:00:01]} 7. Qd2 {[%emt 0:00:24]} e6 $5 {[%emt 0:00:13][%mdl 4] Exploring less charted territory.} 8. g4 {[%emt 0:00:15] The position is equal.} Qb6 {[%emt 0:00:33]} 9. O-O-O {[%emt 0:00:06]} Nc6 {[%emt 0:00:20]} 10. Nge2 {[%emt 0:00:21][%cal Bg1e2,Be2c1,Bc1b3][%mdl 32]} Rc8 {[%emt 0:00:25] [#] And now ...Na5 would win.} 11. a3 $146 {[%emt 0:01:18]} (11. Na4 $142 Qb4 12. Qxb4 Bxb4 13. Kb1) ({Predecessor:} 11. Kb1 Na5 12. Ka1 Bb4 13. h4 Nc4 14. Qc1 Qa5 15. Nb1 Rc6 16. Ng3 O-O 17. g5 {0-1 Gelman,A (2403)-Lazavik,D (2442) Titled Arena Mar 6th blitz 2021}) 11... Qa5 {[%emt 0:00:48]} (11... Be7 $5 {[%cal Rc6a5]}) 12. Kb1 {[%emt 0:00:12]} b5 {[%emt 0:00:06]} 13. Nc1 {[%emt 0:00:39]} b4 {[%emt 0:00:03]} 14. axb4 {[%emt 0:00:02]} Bxb4 {[%emt 0:00:08]} 15. Nb3 {[%emt 0:00:02]} Qb6 {[%emt 0:00:03]} 16. Qd3 {[%emt 0:01:05]} Na5 {[%emt 0:01:19]} 17. Na2 {[%emt 0:00:08]} (17. Nxa5 {looks sharper.} Bxa5 18. Na2 Ba4 19. Rc1) 17... Nc4 {[%emt 0:01:31] aiming for ...a5.} 18. Nxb4 {[%emt 0:00:04]} Qxb4 {[%emt 0:00:01]} 19. Bc1 {[%emt 0:00:13]} Bb5 {[%emt 0:00:14]} 20. Nc5 {[%emt 0:00:03]} Nd7 {[%emt 0:00:57]} 21. Qb3 {[%emt 0:00:07]} Qa5 {[%emt 0:00:06]} 22. Nxd7 {[%emt 0:01:36]} Kxd7 {[%emt 0:00:02]} (22... Ba4 $5 {[%cal Ra4b3]} 23. Qc3 Qxc3 24. bxc3 Kxd7 $17) 23. Qa2 {[%emt 0:00:11]} Qxa2+ {[%emt 0:00:38]} (23... Qb6 {with more complications.} 24. b3 Nd6 25. Ba3 Bxf1 26. Bxd6 Kxd6 27. Qa3+ Kc6) 24. Kxa2 {[%emt 0:00:02]} h5 {[%emt 0:00:01]} 25. h4 {[%emt 0:00:11]} hxg4 {[%emt 0:00:12]} 26. fxg4 {[%emt 0:00:02]} Nd6 {[%emt 0:00:01]} 27. Bxb5+ {[%emt 0:00:20]} Nxb5 {[%emt 0:00:00]} 28. c3 {[%emt 0:00:03]} Nd6 {[%emt 0:00:01]} (28... a5 $5 {[%cal Ra5a4]}) 29. Rdf1 {[%emt 0:00:09]} f6 {[%emt 0:00:02]} 30. g5 {[%emt 0:00:30]} Nf5 {[%emt 0:00:29] Threatens to win with ...Ng3.} 31. gxf6 {[%emt 0:01:05]} gxf6 {[%emt 0:00:00]} ({But not} 31... Rxh4 32. Rxh4 Nxh4 33. Bg5 $16 (33. fxg7 Nf5 $16)) 32. Rxf5 {[%emt 0:00:02] Now White is beyond hope.} exf5 $11 {[%emt 0:00:04][%mdl 4096] Endgame KRR-KRB} 33. h5 {[%emt 0:00:01]} Rcg8 {[%emt 0:00:20]} 34. h6 {[%emt 0:00:05]} Rg4 {[%emt 0:00:02]} 35. Rf1 {[%emt 0:00:09]} Ke6 {[%emt 0:00:03]} 36. b4 {[%emt 0:00:14]} Rg3 {[%emt 0:00:29]} 37. Kb3 {[%emt 0:00:03]} Rc8 {[%emt 0:00:04]} 38. Bd2 {[%emt 0:00:03]} Rh3 {[%emt 0:00:01]} 39. Re1+ {[%emt 0:00:12]} Kf7 {[%emt 0:00:05][%cal Of5f4]} 40. Rf1 {[%emt 0:00:01] [#]} f4 {[%emt 0:00:05]} 41. Rxf4 {[%emt 0:00:19]} Rxh6 {[%emt 0:00:04] Hoping for ...Rch8.} 42. Kc2 $2 {[%emt 0:00:08]} (42. Rf1 Rh2 43. Bc1) 42... Rh2 $19 {[%emt 0:00:03] ...Rg8 would be deadly.} 43. Rf1 {[%emt 0:00:07]} Rg8 {[%emt 0:00:06] Strongly threatening ...Rgg2.} 44. Kd3 {[%emt 0:00:13]} Rg3+ {[%emt 0:00:02]} 45. Be3 {[%emt 0:00:01]} Rhh3 {[%emt 0:00:14]} 46. Re1 {[%emt 0:00:02]} f5 {[%emt 0:00:01] ( -> ...f4)} 47. Kd2 {[%emt 0:00:02]} Rf3 {[%emt 0:00:02]} 48. Bg5 {[%emt 0:00:14]} Rd3+ {[%emt 0:00:03][%mdl 64] [#] Deflection} 49. Ke2 {[%emt 0:00:02]} Rxc3 {[%emt 0:00:04] ...Rc2+ is the strong threat.} 50. Ra1 {[%emt 0:00:01]} Rc2+ {[%emt 0:00:02]} 51. Kd1 {[%emt 0:00:05]} Rh1+ {[%emt 0:00:01]} 52. Kxc2 {[%emt 0:00:02]} Rxa1 {[%emt 0:00:00] Weighted Error Value: White=0.58/Black=0.09 (flawless)} 0-1

[Event "CCT Airthings Masters Play-In 2023"]
[Site "Online"]
[Date "2023.02.03"]
[Round "3"]
[White "Harsha_Bharathakoti"]
[Black "DeviatkinAndrey"]
[Result "1-0"]
[ECO "C41"]
[WhiteElo "2504"]
[BlackElo "2144"]
[Annotator "TA"]
[PlyCount "73"]
[EventDate "2023.02.03"]
[EventType "swiss"]
[EventCountry "NET"]
[SourceTitle "playchess.com"]
[Source "ChessBase"]
[SourceQuality "1"]
[TimeControl "600+2"]

{[%evp 21,73,48,44,27,36,30,46,29,67,36,79,74,79,77,93,85,125,97,122,75,66,75,103,105,125,118,162,170,202,195,203,193,212,189,189,182,197,182,182,182,246,242,223,194,244,192,201,182,536,494,547,135,29997,29997]} 1. d4 {[%emt 0:00:05]} d6 {[%emt 0:00:05]} 2. e4 {[%emt 0:00:03]} Nf6 {[%emt 0:00:03]} 3. Nc3 {[%emt 0:00:04]} e5 {[%emt 0:00:09]} 4. Nf3 {[%emt 0:00:02]} Nbd7 {[%emt 0:00:03]} 5. Bc4 {[%emt 0:00:03]} Be7 {[%emt 0:00:01]} 6. O-O {[%emt 0:00:04]} O-O {[%emt 0:00:02]} 7. Re1 {[%emt 0:00:12]} c6 {[%emt 0:00:02]} 8. a4 {[%emt 0:00:01]} b6 {[%emt 0:00:06]} 9. d5 {[%emt 0:01:15]} Bb7 {[%emt 0:00:16][%cal Bc8b7,Bb7c6,Bc6d7][%mdl 32]} 10. dxc6 {[%emt 0:00:38]} Bxc6 {[%emt 0:00:02]} 11. Bg5 {[%emt 0:00:00]} Rc8 {[%emt 0:00:47][%cal Oc6e4]} 12. Bxf6 {[%emt 0:00:08] C41: Philidor Defence.} Nxf6 {[%emt 0:00:02]} 13. Qd3 {[%emt 0:00:02] [#]} Bd7 $146 {[%emt 0:01:02]} ({Predecessor:} 13... Bb7 14. Nd2 Qc7 15. Bb3 Rfd8 16. Nf1 Bf8 17. Ne3 g6 18. a5 Bh6 19. axb6 axb6 {1-0 Nomin Erdene,D (2377)-Laketic,G (2367) Debrecen MGL-HUN Cup 2019 (9)}) 14. Rad1 {[%emt 0:01:45] White is slightly better.} h6 {[%emt 0:00:33]} 15. Nh4 {[%emt 0:01:21]} Kh7 {[%emt 0:01:38] Against Ng6} 16. Nf5 {[%emt 0:00:12]} Bxf5 {[%emt 0:01:29]} 17. exf5 {[%emt 0:00:00]} Kh8 {[%emt 0:00:21] Black is weak on the light squares} 18. Nd5 {[%emt 0:00:50]} e4 {[%emt 0:01:12]} 19. Qb3 {[%emt 0:00:27] White is more active.} Rc5 {[%emt 0:00:17]} 20. Nxf6 {[%emt 0:00:52]} (20. c3 $142) 20... Bxf6 $16 {[%emt 0:00:02]} 21. Bd5 {[%emt 0:00:16]} (21. Bxf7 Rxf5 22. Qh3 (22. Rxe4 Bh4 $11) (22. Bg6 Rxf2 23. Bxe4 Be5 $17) 22... Rc5 $11) 21... Be5 {[%emt 0:00:13]} 22. Bxe4 {[%emt 0:00:36]} ({Of course not} 22. Bxf7 $6 Bxh2+ 23. Kxh2 Qh4+ 24. Qh3 Qxh3+ 25. Kxh3 Rxf7 $11) 22... Qf6 {[%emt 0:00:29]} 23. c3 {[%emt 0:00:01]} Re8 {[%emt 0:00:24][%cal Oe5h2]} 24. g3 {[%emt 0:00:02] Hoping for Bd3.} d5 {[%emt 0:00:17]} 25. Bxd5 {[%emt 0:00:08] [#] Black must now prevent f4.} Rf8 {[%emt 0:00:21]} 26. Qc2 {[%emt 0:00:47]} Rc7 {[%emt 0:00:02]} 27. Re3 {[%emt 0:00:11]} Bd6 {[%emt 0:00:09]} 28. Rde1 {[%emt 0:00:09]} Re7 {[%emt 0:00:08]} 29. Rxe7 {[%emt 0:00:04]} Bxe7 {[%emt 0:00:01]} 30. Kg2 {[%emt 0:00:05]} a5 {[%emt 0:00:02]} (30... Rd8 $142) 31. Qe4 $18 {[%emt 0:00:17]} Bc5 {[%emt 0:00:07]} 32. Re2 {[%emt 0:00:01]} Qd6 {[%emt 0:00:08]} (32... Kg8 $142 33. Bb3 Rd8) 33. h4 {[%emt 0:00:05]} Kg8 {[%emt 0:00:19]} 34. Bb3 {[%emt 0:00:07]} Qc7 $2 {[%emt 0:00:03] [#]} (34... Rd8 {is a better chance.} 35. Bc4 Qf6) 35. f6 $1 {[%emt 0:00:04]} Qc8 {[%emt 0:00:13]} (35... Qd6 36. fxg7) 36. Qg6 $2 {[%emt 0:00:04]} (36. Kh2 $18 {is more deadly. White threatens Qg6 and mate.} Qd8 37. fxg7 Kxg7 38. Qg4+ Kh8 39. Qf5) 36... Qb7+ $2 {[%emt 0:00:02][%mdl 8192]} (36... Qc6+ $16 37. Kh3 Qxf6 38. Qxf6 gxf6) 37. Kg1 {[%emt 0:00:02] Weighted Error Value: White=0.37/Black=0.55} 1-0

[Event "CCT Airthings Masters Play-In 2023"]
[Site "Online"]
[Date "2023.02.03"]
[Round "3"]
[White "Vladimir_"]
[Black "Ginger_GM"]
[Result "0-1"]
[ECO "B53"]
[WhiteElo "2494"]
[BlackElo "2101"]
[Annotator "TA"]
[PlyCount "148"]
[EventDate "2023.02.03"]
[EventType "swiss"]
[EventCountry "NET"]
[SourceTitle "playchess.com"]
[Source "ChessBase"]
[SourceQuality "1"]
[TimeControl "600+2"]

{[%evp 9,148,0,35,20,27,36,41,11,22,17,26,17,24,12,25,6,14,8,4,10,14,6,12,0,18,15,27,31,30,26,45,44,42,31,28,19,22,17,22,22,203,197,198,20,25,20,35,20,93,86,202,38,21,0,97,-10,-17,-58,-33,-68,-55,-55,-61,-69,0,0,0,-55,-81,-55,-55,-158,-110,-101,-55,-55,-55,-123,-126,-370,-311,-380,-369,-333,0,0,0,0,0,0,0,0,314,314,284,0,0,-29991,-29992,-29995,-29996,-29996,29969,12823,6398,-29955,-29955,-29956,-29958,-29955,-29957,-29981,-12849,-29982,-29983,-29984,-29985,-29985,-29986,-29987,-29986,-29986,-29972,-29971,-29971,-29978,-29976,-29982,-29984,-29986,-29971,-29968,-29957,-12795,-5273,-6731,-5253,-5179,-5159,-29988,-29989]} 1. e4 {[%emt 0:00:03]} c5 {[%emt 0:00:10]} 2. Nf3 {[%emt 0:00:02]} d6 {[%emt 0:00:05]} 3. Bb5+ {[%emt 0:00:09]} Nc6 {[%emt 0:00:04]} 4. d4 {[%emt 0:00:06]} cxd4 {[%emt 0:00:07]} 5. Qxd4 {[%emt 0:00:05]} Bg4 {[%emt 0:00:52]} 6. Qd3 {[%emt 0:00:11] B53: Sicilian: 2...d6: Lines with Qxd4.} Nf6 {[%emt 0:00:19]} 7. O-O {[%emt 0:00:07] [#]} g6 $146 {[%emt 0:00:41]} ({Predecessor:} 7... Nd7 8. Nc3 Rc8 9. Nd4 Nde5 10. Qg3 Bd7 11. Nxc6 Bxc6 12. Bf4 Bxb5 13. Nxb5 a6 14. Bxe5 dxe5 {½-½ Nitin,S (2404)-Gundavaa,B (2492) Asian Continental op 14th 2015 (7)}) 8. e5 {[%emt 0:01:11] White is slightly better.} dxe5 {[%emt 0:00:06] ...Qxd3 is the strong threat.} 9. Qxd8+ {[%emt 0:00:02]} Rxd8 {[%emt 0:00:04]} 10. Nxe5 {[%emt 0:00:01]} Bd7 {[%emt 0:00:05]} 11. Nxd7 {[%emt 0:00:02]} Rxd7 {[%emt 0:00:17]} 12. Nd2 {[%emt 0:00:17]} Bg7 {[%emt 0:00:46]} 13. Nc4 {[%emt 0:00:41]} O-O {[%emt 0:00:16]} 14. Bxc6 {[%emt 0:00:02]} bxc6 {[%emt 0:00:01]} 15. Be3 {[%emt 0:00:02]} Nd5 {[%emt 0:00:11]} 16. Rae1 {[%emt 0:00:21][%cal Ba1e1,Be1e3,Be3a3,Ba3a6][%mdl 32]} Nxe3 {[%emt 0:00:27]} 17. Rxe3 {[%emt 0:00:05]} e6 {[%emt 0:00:36]} 18. Ra3 {[%emt 0:00:25]} Rb8 {[%emt 0:00:26]} 19. b3 {[%emt 0:00:06]} Bc3 {[%emt 0:00:47][%cal Oa7a5]} 20. Ra6 {[%emt 0:00:05]} Rc8 {[%emt 0:00:03]} 21. g3 {[%emt 0:00:14]} e5 {[%emt 0:00:14]} 22. Kg2 {[%emt 0:00:29]} f5 {[%emt 0:00:02]} 23. Kf3 {[%emt 0:00:33]} h5 {[%emt 0:00:09]} 24. Ke2 {[%emt 0:00:07]} Kf7 $2 {[%emt 0:00:43]} (24... Rcc7 $11 {and Black is okay.}) 25. Rd1 $18 {[%emt 0:00:04]} Rxd1 {[%emt 0:00:01]} 26. Kxd1 {[%emt 0:00:02][%mdl 4096] Endgame KRB-KRN} (26. Rxa7+ $18 Ke6 27. Kxd1) 26... Rc7 $1 $11 {[%emt 0:00:05]} 27. Ke2 {[%emt 0:00:04]} Ke6 {[%emt 0:00:09]} 28. Kd3 {[%emt 0:00:19]} Bd4 {[%emt 0:00:01]} (28... Be1 $11) 29. f4 $16 {[%emt 0:00:18]} Kd5 {[%emt 0:00:17]} (29... h4 $16) 30. fxe5 $2 {[%emt 0:00:28]} (30. Ra5+ $1 $18 Ke6 31. Nxe5 (31. fxe5 Bg1 $11) 31... Bxe5 32. Rxe5+ Kd6 33. Kc4) 30... Bg1 $1 $14 {[%emt 0:00:21]} (30... Bxe5 $2 31. Ra5+ Ke6 32. Nxe5 $18) 31. h3 {[%emt 0:00:47]} Bf2 {[%emt 0:00:03]} (31... g5 $1 $11 {keeps the balance.}) 32. Ne3+ {[%emt 0:00:21]} (32. Ra5+ $6 Ke6 $11) (32. Na5 $1 $16) 32... Kxe5 $11 {[%emt 0:00:07]} 33. Ra5+ {[%emt 0:00:02]} Kf6 {[%emt 0:00:09]} 34. Nf1 {[%emt 0:00:09]} Rd7+ {[%emt 0:00:10]} 35. Ke2 $1 {[%emt 0:00:02]} Bb6 {[%emt 0:00:01]} 36. Ra4 {[%emt 0:00:05]} Rd4 {[%emt 0:00:17]} ({Better is} 36... Rd5 $15) 37. Rxd4 {[%emt 0:00:09]} Bxd4 {[%emt 0:00:01] KB-KN} 38. Nd2 {[%emt 0:00:10]} (38. h4 $1 $11) 38... g5 $15 {[%emt 0:00:08]} 39. Nc4 {[%emt 0:00:11]} Ke6 {[%emt 0:00:15]} 40. a4 {[%emt 0:00:12]} (40. Na5 $15) 40... g4 {[%emt 0:00:04]} (40... Be5 $142 $1 {[%cal Re5g3]} 41. g4 fxg4 42. hxg4 h4) 41. hxg4 $17 {[%emt 0:00:02]} fxg4 {[%emt 0:00:02]} (41... hxg4 $17 42. Na5 Kd5) 42. Ne3 {[%emt 0:00:31]} Be5 {[%emt 0:00:19]} 43. Kf2 {[%emt 0:00:03]} (43. Nf1 $1 $15) 43... Bc3 {[%emt 0:00:11]} 44. Ng2 $2 {[%emt 0:00:04]} (44. Nc4 $17) 44... Kf5 {[%emt 0:00:04]} 45. Nf4 {[%emt 0:00:13]} Bd4+ {[%emt 0:00:17]} 46. Kf1 {[%emt 0:00:02] [#]} h4 {[%emt 0:00:05]} 47. Ne2 $11 {[%emt 0:00:01]} Bf6 {[%emt 0:00:08] Hoping for ...h3.} 48. gxh4 {[%emt 0:00:02]} Bxh4 {[%emt 0:00:01] Strongly threatening ...Ke4.} 49. Nd4+ {[%emt 0:00:03]} Ke4 {[%emt 0:00:03]} 50. Nxc6 {[%emt 0:00:01]} Ke3 $2 {[%emt 0:00:11][%mdl 8192]} (50... Kf3 $11) 51. Nxa7 $18 {[%emt 0:00:13] Nc6 would be deadly.} Kf3 {[%emt 0:00:07]} 52. Nc6 $2 {[%emt 0:00:05]} (52. Nb5 $1 $18 Bf6 53. c3 (53. a5 g3 $11)) 52... Bf6 $1 $11 {[%emt 0:00:06]} 53. a5 $2 {[%emt 0:00:13][%mdl 8192]} (53. c3 $11 Bxc3 54. Ne7 (54. a5 {leads to mate.} g3)) 53... g3 $1 {[%emt 0:00:03]} 54. a6 {[%emt 0:00:01]} g2+ $1 {[%emt 0:00:08]} 55. Kg1 {[%emt 0:00:01]} Bg5 $4 {[%emt 0:00:08][%mdl 8192]} (55... Kg3 $1 56. Ne5 Bxe5 57. c3 Bxc3 58. a7 Bd4#) 56. Nd4+ {[%emt 0:00:03]} Kg3 {[%emt 0:00:01]} 57. Nf5+ $4 {[%emt 0:00:03][%mdl 8192] [#]} (57. Ne2+ $18 Kf3 58. Kh2) 57... Kh3 $1 {[%emt 0:00:09]} 58. a7 {[%emt 0:00:23] [#]} Bd8 $1 {[%emt 0:00:05]} 59. a8=N {[%emt 0:00:24]} Bf6 {[%emt 0:00:09]} 60. Kf2 {[%emt 0:00:22]} Be5 {[%emt 0:00:02]} (60... Kh2 $142 61. Kf3 g1=Q 62. Ne3 Bd4 63. Nf5 Qg2+ {[%mdl 64] Skewer, Double Attack} 64. Kf4 Bf6 65. c4 Qg5+ 66. Ke4 Qg4+ {[%mdl 64] Deflection} 67. Kd5 Qxf5+ 68. Kc6 Qe4+ 69. Kc7 Qxa8 70. Kd6 Bd4 71. b4 Qa4 72. Kc7 Qxb4 73. Kc6 Qxc4+ 74. Kd6 Qc5+ 75. Kd7 Qd5+ 76. Ke7 Bc3 77. Ke8 Qe6+ 78. Kf8 Qd7 79. Kg8 Qg7#) 61. Ne3 {[%emt 0:00:03]} Bd4 {[%emt 0:00:02]} 62. Nc7 {[%emt 0:00:04]} Bxe3+ {[%emt 0:00:00][%mdl 64] Deflection} 63. Kxe3 {[%emt 0:00:00]} g1=Q+ {[%emt 0:00:01]} (63... g1=B+ $2 64. Ke4 $18) 64. Kd3 {[%emt 0:00:01]} Qc5 {[%emt 0:00:01]} 65. Ne6 {[%emt 0:00:03]} Qd5+ {[%emt 0:00:02]} 66. Nd4 {[%emt 0:00:01]} Kg4 {[%emt 0:00:00]} 67. c4 {[%emt 0:00:02]} Qb7 {[%emt 0:00:02]} 68. c5 {[%emt 0:00:01]} Kf4 {[%emt 0:00:03]} 69. c6 {[%emt 0:00:03]} Qb6 {[%emt 0:00:01]} 70. c7 {[%emt 0:00:01]} Qa6+ {[%emt 0:00:04]} ({Much less strong is} 70... Qxc7 71. Ne6+ Ke5 72. Nxc7 Kd6 73. Na6 Ke7 74. b4 Kd6 75. Kc4) 71. Kc3 {[%emt 0:00:03]} Ke5 {[%emt 0:00:01] ( -> ...Qa5+)} 72. b4 {[%emt 0:00:03] Against Qa5} Kd6 {[%emt 0:00:02]} 73. Nb5+ {[%emt 0:00:04]} Kd7 {[%emt 0:00:03]} ({Worse is} 73... Qxb5 74. c8=Q $11) 74. Kc4 {[%emt 0:00:03]} Qc6+ {[%emt 0:00:03] Black used his chance.   Weighted Error Value: White=0.50/Black=0.39} 0-1

[Event "CCT Airthings Masters Play-In 2023"]
[Site "Online"]
[Date "2023.02.03"]
[Round "3"]
[White "starworld123"]
[Black "PSvidler"]
[Result "0-1"]
[ECO "E61"]
[WhiteElo "2467"]
[BlackElo "2741"]
[Annotator "NA"]
[PlyCount "56"]
[EventDate "2023.02.03"]
[EventType "swiss"]
[EventCountry "NET"]
[SourceTitle "playchess.com"]
[Source "ChessBase"]
[SourceQuality "1"]
[TimeControl "600+2"]

1. d4 {[%emt 0:00:03]} Nf6 {[%emt 0:00:04]} 2. c4 {[%emt 0:00:01]} g6 {[%emt 0:00:01]} 3. g3 {[%emt 0:00:12]} Bg7 {[%emt 0:00:03]} 4. Bg2 {[%emt 0:00:01]} O-O {[%emt 0:00:05]} 5. Nc3 {[%emt 0:00:02]} Nc6 {[%emt 0:00:03]} 6. d5 {[%emt 0:00:57]} Ne5 {[%emt 0:00:15]} 7. b3 {[%emt 0:00:06]} d6 {[%emt 0:00:01]} 8. Bb2 {[%emt 0:00:08]} c6 {[%emt 0:00:07]} 9. dxc6 {[%emt 0:00:05]} bxc6 {[%emt 0:00:07]} 10. Nf3 {[%emt 0:00:08]} Nxf3+ {[%emt 0:00:10]} 11. Bxf3 {[%emt 0:00:00]} Bh3 {[%emt 0:00:09]} 12. Bxc6 {[%emt 0:00:12]} Rc8 {[%emt 0:00:02]} 13. Bf3 {[%emt 0:00:02]} e6 {[%emt 0:00:35]} 14. Qd2 {[%emt 0:00:16]} d5 {[%emt 0:00:04]} 15. cxd5 {[%emt 0:00:31]} Nxd5 {[%emt 0:00:17]} 16. Nxd5 {[%emt 0:00:19]} Bxb2 {[%emt 0:00:02]} 17. Qxb2 {[%emt 0:00:02]} exd5 {[%emt 0:00:01]} 18. Rd1 {[%emt 0:00:20]} Re8 {[%emt 0:00:58]} 19. Bxd5 {[%emt 0:00:16]} Qa5+ {[%emt 0:00:11]} 20. b4 {[%emt 0:00:12]} Qb6 {[%emt 0:00:07]} 21. Qb3 {[%emt 0:00:39]} Qf6 {[%emt 0:00:21]} 22. Bc4 {[%emt 0:03:44]} a5 {[%emt 0:01:56]} 23. bxa5 {[%emt 0:01:37]} Qe5 {[%emt 0:01:28]} 24. Qb4 {[%emt 0:00:44]} Rxc4 {[%emt 0:00:28]} 25. Qxc4 {[%emt 0:00:05]} Qxa5+ {[%emt 0:00:00]} 26. Rd2 {[%emt 0:00:02]} Rc8 {[%emt 0:00:00]} 27. Qxc8+ {[%emt 0:00:08]} Bxc8 {[%emt 0:00:02]} 28. Kd1 {[%emt 0:00:02]} Bd7 {[%emt 0:00:05]} 0-1